Cogmind - Beta 15 @@@ ROGUE MODE // 2025.08.14 @ 16:58:36 Player: human Result: Destroyed by G-50 Soldier with Heavy Laser Performance ------------- Evolutions (3) 1500 Regions Visited (10) 2000 Robots Destroyed (77) 385 Value Destroyed (3354) 3354 Prototype IDs (25) 500 Alien Tech Used (1) 200 Bonus (911) 911 TOTAL SCORE: 8850 Bonus ------- High Alert Combat Kills 11 Follower Combat Kills 112 Entered Garrisons 200 Met Data Miner 300 Acquired ECA 300 Friendly Fire -12 Cogmind --------- Core Integrity 0/700 Matter 262/300 Energy 123/150 System Corruption 2% Temperature Hot (266) Movement Core (1050) Ox20 Location -6/Proximity Caves Parts ------- > --- POWER (2) -------- Micro Nuclear Core > --- PROPULSION (4) --- (None) > --- UTILITY (5) ------ High-capacity Storage Unit Targeting Computer Core Analyzer Makeshift Weapon Shielding Hardened Light Armor Plating > --- WEAPON (3) ------- Makeshift Laser Beamcaster Minigun > --- INVENTORY (20) --- Improved Heat Sink Improved Heat Sink Improved Heat Sink Huge Storage Unit Large Matter Pod (150) Encrypted Comm Array Makeshift Weapon Shielding Makeshift Weapon Shielding Tower Shield Authchip [R/Combat] Authchip [R/Combat] Authchip [R/Combat] Authchip [R/Combat] Authchip [R/Combat] Trap Extractor (4/4 Dirty Bomb) Thief Drone Bay (3/3) Datajack Makeshift Hammer Peak State ------------ > --- POWER ------------ Improved Ion Engine Light Nuclear Core > --- PROPULSION ------- Light Treads Light Treads Wheel Wheel > --- UTILITY ---------- Improved Heat Sink Huge Storage Unit Seismic Detector Core Analyzer Makeshift Weapon Shielding > --- WEAPON ----------- Precision Beam Rifle Precision Beam Rifle Makeshift Hammer > --- INVENTORY -------- Light Deuterium Engine Micro Nuclear Core Improved Heat Sink Improved Heat Sink High-capacity Storage Unit Large Matter Pod Encrypted Comm Array Hardened Light Armor Plating Tower Shield Authchip [R/Combat] Authchip [R/Combat] Authchip [R/Combat] Authchip [R/Combat] Authchip [R/Combat] Trap Extractor Thief Drone Bay Precision Beam Rifle Heavy Particle Cannon Minigun Gauss Rifle Flak Cannon Datajack Fire Trap Fire Trap [Rating: 43] Favorites ----------- Power Improved Ion Engine Engine Improved Ion Engine Power Core Light Nuclear Core Propulsion Wheel Treads Light Treads Wheel Wheel Utility Improved Heat Sink Device Improved Heat Sink Storage High-capacity Storage Unit Processor Core Analyzer Hackware Makeshift Hacking Suite Protection Improved Weapon Shielding Weapon Precision Beam Rifle Energy Gun Precision Beam Rifle Energy Cannon Particle Cannon Ballistic Gun Minigun Ballistic Cannon Flak Cannon Launcher Grenade Launcher Impact Weapon Makeshift Hammer Special Melee Weapon Datajack Build | -11 -10 -10 -10 -8 -8 -7 -7 -7 -7 -6 ------- Run | Yrd Mat Min Sub Mat Gar Fac Low Low Dat Pro Slots Evolved 6 | . . . . 4 . 2 . . . . Power . | . . . . . . . . . . . Propulsion 2 | . . . . 1 . 1 . . . . Utility 3 | . . . . 2 . 1 . . . . Weapon 1 | . . . . 1 . . . . . . Parts Attached 69 | 6 10 . 10 17 4 3 2 13 . 4 Power 8 | 1 1 . 2 . 1 . . 3 . . Engine 6 | 1 1 . 2 . 1 . . 1 . . Core 2 | . . . . . . . . 2 . . Reactor . | . . . . . . . . . . . Propulsion 12 | 2 1 . 1 4 . 1 2 1 . . Treads 2 | . . . . 1 . . 1 . . . Leg . | . . . . . . . . . . . Wheel 10 | 2 1 . 1 3 . 1 1 1 . . Hover . | . . . . . . . . . . . Flight . | . . . . . . . . . . . Utility 24 | 1 5 . 2 6 1 2 . 5 . 2 Device 11 | . 2 . 2 3 . 1 . 3 . . Storage 5 | 1 3 . . . 1 . . . . . Processor 2 | . . . . . . 1 . . . 1 Hackware 1 | . . . . 1 . . . . . . Protection 5 | . . . . 2 . . . 2 . 1 Artifact . | . . . . . . . . . . . Weapon 25 | 2 3 . 5 7 2 . . 4 . 2 Energy Gun 10 | . . . . 6 . . . 2 . 2 Energy Cannon 5 | . 3 . 1 . 1 . . . . . Ballistic Gun 4 | 2 . . 1 . . . . 1 . . Ballistic Cannon 1 | . . . . . . . . 1 . . Launcher 3 | . . . 3 . . . . . . . Special Weapon . | . . . . . . . . . . . Impact Weapon 1 | . . . . 1 . . . . . . Slashing Weapon . | . . . . . . . . . . . Piercing Weapon . | . . . . . . . . . . . Special Melee Weapon 1 | . . . . . 1 . . . . . Unidentified Prototypes 4 | . . . 1 2 . . . 1 . . Parts Lost 32 | . 3 . 3 5 1 1 3 14 . 2 Power 6 | . 1 . 1 1 . . . 3 . . Propulsion 11 | . 1 . 1 2 . . 2 4 . 1 Utility 6 | . . . . 1 1 1 1 2 . . Weapon 9 | . 1 . 1 1 . . . 5 . 1 Highest Loss Streak 11 | . 2 . 2 3 1 1 3 11 . 2 To Critical Strikes . | . . . . . . . . . . . Average Backups 19 | 2 15 18 19 18 22 22 23 21 17 17 Power 1 | . 1 . . . . 1 2 2 . . Propulsion . | 1 3 4 2 . . . . . . . Utility 9 | . 2 4 5 7 12 13 12 12 14 14 Weapon 7 | . 7 9 9 9 8 7 7 4 2 2 Tool/Special . | . . . . . . . . . . . Unused Backups 25 | . 1 . 8 3 3 . . 1 . 9 Power 1 | . 1 . . . . . . . . . Propulsion 3 | . . . 3 . . . . . . . Utility 10 | . . . 1 . 1 . . . . 8 Weapon 10 | . . . 4 3 2 . . 1 . . Tool/Special 1 | . . . . . . . . . . 1 Average Slot Usage (%) 92 | . 97 100 99 90 98 91 92 88 64 64 Engine 9 | . 14 14 13 8 9 7 7 5 . . Core 1 | . . . . . . . . 4 7 7 Treads 5 | . . . . 1 9 7 13 12 7 6 Wheel 18 | . 27 28 27 20 18 18 15 8 . . Device 13 | . 10 14 14 14 9 18 15 17 7 7 Storage 10 | . 15 14 14 9 9 7 7 7 7 7 Processor 2 | . . . . . . 3 7 7 7 8 Hackware 2 | . . . . 8 8 . . . . . Protection 2 | . . . . 2 9 3 . 2 7 7 Energy Gun 9 | . . . . 14 10 16 23 16 7 7 Energy Cannon 6 | . 21 28 11 6 3 . . . . . Ballistic Gun 1 | . 5 . . . . . . . 7 7 Launcher 4 | . . . 15 3 . . . . . . Impact Weapon 1 | . . . . . 7 3 . 3 . . Special Melee Weapon 1 | . . . . . 5 3 . . 7 6 Peak Build Rating 43 | 6 13 14 17 34 35 41 36 43 32 37 Average Rating 26 | 4 11 13 14 27 33 33 35 38 32 32 On Entrance 22 | . 6 13 14 16 31 30 36 36 32 32 Naked Turns . | . . . . . . . . . . . Heaviest Build 103 | 14 54 54 58 65 101 97 96 103 54 55 Greatest Support 40 | 26 26 26 26 40 20 30 30 20 20 20 Greatest Overweight (x) 17 | . 2 2 2 5 5 4 9 17 2 2 Average Overweight (x) 2 | . 1 2 2 1 3 3 3 7 2 2 Largest Inventory Capacity 25 | 8 20 20 20 20 25 25 25 25 20 20 Average Capacity 21 | 7 17 20 20 20 23 25 25 24 20 20 Most Carried 25 | 4 20 19 20 20 25 25 25 25 18 20 Average Carried 20 | 2 15 18 19 19 23 23 24 22 18 18 Final Capacity 25 | 8 20 20 20 20 25 25 25 20 20 20 Final Carried 25 | 4 18 19 20 20 25 25 25 18 18 19 Class Distribution -------------------- 56% | Mutant 13% | Gunner 10% | Scavenger-Gunner 8% | Scavenger-Mutant 6% | Commander-Mutant 4% | Tank Dominant Class ---------------- Mutant | -10/Materials Mutant | -10/Mines Mutant | -10/Subcaves Gunner | -8/Materials Mutant | -8/Garrison Gunner | -7/Factory Scavenger-Gunner | -7/Lower Caves Scavenger-Mutant | -7/Lower Caves Mutant | -7/Data Miner Mutant | -6/Proximity Caves Resources | -11 -10 -10 -10 -8 -8 -7 -7 -7 -7 -6 ----------- Run | Yrd Mat Min Sub Mat Gar Fac Low Low Dat Pro Matter Collected 1844 | 189 465 . 284 391 10 181 20 284 . 20 Remotely 157 | . . . . . . 157 . . . . Salvage Created 2949 | . 580 . 256 870 10 161 165 740 . 167 Parts 131 | . 41 . 20 25 . 11 6 23 . 5 Haulers Intercepted 3 | . 1 . . 2 . . . . . . Recyclers Shooed . | . . . . . . . . . . . Parts Field Recycled . | . . . . . . . . . . . Retrieved Matter . | . . . . . . . . . . . Parts Self-Destructed 43 | . . . 5 . . . 7 24 . 7 Prevented . | . . . . . . . . . . . Kills | -11 -10 -10 -10 -8 -8 -7 -7 -7 -7 -6 ------- Run | Yrd Mat Min Sub Mat Gar Fac Low Low Dat Pro Combat Hostiles Destroyed 60 | . 15 . 14 13 . 1 3 13 . 1 Guns 25 | . 2 . . 7 . 1 3 11 . 1 Cannons 18 | . 13 . 3 2 . . . . . . AOE 15 | . . . 11 4 . . . . . . Classes Destroyed 15 | . 6 . 2 4 . . 1 1 . 1 Worker 4 | . 1 . . 1 . 2 . . . . Builder 2 | . 1 . . 1 . . . . . . Hauler 3 | . 1 . . 2 . . . . . . Recycler 3 | . . . . 2 . 1 . . . . Minesweeper 1 | . . . . . . . . 1 . . Operator 2 | . 1 . . 1 . . . . . . Drone 1 | . . . . . . . . . . 1 Watcher 2 | . . . . 1 . 1 . . . . Swarmer 14 | . 6 . 7 . . . . 1 . . Grunt 26 | . 9 . . 8 . 1 . 8 . . Duelist 4 | . . . . 1 . . . 3 . . Sentry 6 | . . . . 4 . . 1 1 . . Programmer 2 | . . . . . . . 2 . . . Cobbler 1 | . . . 1 . . . . . . . Subdweller 7 | . . . 7 . . . . . . . Decomposer 1 | . . . . . . . 1 . . . Best Kill Streak 6 | . 6 . 5 4 . 2 2 4 . 1 Combat Bots Only 5 | . 5 . 5 3 . 1 2 4 . 1 Max Kills in Single Turn 4 | . 2 . 4 2 . 1 1 1 . 1 Gunslinging . | . . . . . . . . . . . Exploded 4 | . . . 4 1 . . . . . . Melee . | . . . . . . . . . . . Uniques/NPCs Destroyed . | . . . . . . . . . . . Combat | -11 -10 -10 -10 -8 -8 -7 -7 -7 -7 -6 -------- Run | Yrd Mat Min Sub Mat Gar Fac Low Low Dat Pro Hostile Shots Fired 355 | . 53 . 53 56 . 20 59 97 . 17 Missed 101 | . 11 . 14 21 . 8 24 17 . 6 Hits 254 | . 42 . 39 35 . 12 35 80 . 11 Melee 10 | . . . . . . . . 9 . 1 Projectile 244 | . 42 . 39 35 . 12 35 71 . 10 Critical Strikes 10 | . . . . 2 . . . 7 . 1 Actively Blocked 3 | . . . . 1 . . . 2 . . Damage Taken 4020 | . 463 . 542 556 94 102 303 1740 . 220 Core 1101 | . 80 . 158 162 . 18 89 478 . 116 Absorbed by Shields . | . . . . . . . . . . . Redirected to Shielding 182 | . . . . 72 21 12 . 70 . 7 Core Remaining (%) 58 | 100 . . 4 . 70 . . . . . Volleys Fired 187 | . 35 . 32 45 7 8 8 38 . 14 Largest 3 | . 2 . 2 3 3 3 3 3 . 3 Hottest 325 | . 136 . 136 208 152 183 183 211 . 325 Shots Fired 416 | . 70 . 52 111 15 24 25 91 . 28 Gun 269 | . 18 . 1 79 10 24 25 84 . 28 Cannon 118 | . 52 . 33 23 4 . . 6 . . Launcher 29 | . . . 18 9 1 . . 1 . . Special . | . . . . . . . . . . . Kinetic 39 | . 18 . 1 . . . . 13 . 7 Thermal 348 | . 52 . 33 102 14 24 25 77 . 21 Explosive 29 | . . . 18 9 1 . . 1 . . Electromagnetic . | . . . . . . . . . . . Robot Hit Streak 31 | . 6 . 12 31 10 22 15 21 . 11 Robot Miss Streak 4 | . 2 . 3 2 . 1 1 4 . 3 Penetration Max . | . . . . . . . . . . . Secondary Targets 2 | . . . . 1 . . . 1 . . Max Gunslinging Chain 1 | . . . . 1 . . . 1 . . Shots Hit Robots 291 | . 43 . 22 79 11 16 18 79 . 23 Core Hits 150 | . 23 . 23 39 4 8 8 36 . 9 Critical Kills . | . . . . . . . . . . . Critical Parts Destroyed . | . . . . . . . . . . . Critical Strikes 15 | . . . . 3 . . 3 8 . 1 Burn 15 | . . . . 3 . . 3 8 . 1 Melee Attacks 36 | . . . . 1 18 1 . 13 . 3 Impact 22 | . . . . 1 11 1 . 9 . . Slashing . | . . . . . . . . . . . Piercing . | . . . . . . . . . . . Sneak Attacks 12 | . . . . . 7 . . 4 . 1 Combat Hostiles . | . . . . . . . . . . . Follow-up Attacks . | . . . . . . . . . . . Damage Inflicted 7047 | . 847 . 1414 1933 486 270 346 1362 . 389 Guns 3520 | . 158 . . 1124 50 270 346 1183 . 389 Cannons 1278 | . 689 . 195 297 . . . 97 . . Explosions 2249 | . . . 1219 512 436 . . 82 . . Melee . | . . . . . . . . . . . Ramming . | . . . . . . . . . . . Kinetic 436 | . 158 . . . . . . 204 . 74 Thermal 4362 | . 689 . 195 1421 50 270 346 1076 . 315 Explosive 2249 | . . . 1219 512 436 . . 82 . . Electromagnetic . | . . . . . . . . . . . Impact . | . . . . . . . . . . . Slashing . | . . . . . . . . . . . Piercing . | . . . . . . . . . . . Highest Corruption 7 | . . . . 7 7 . 2 2 2 2 Average Corruption 4 | . . . . 6 7 . 1 2 2 2 Corruption Purged . | . . . . . . . . . . . Corruption Blocked . | . . . . . . . . . . . Effects 73 | . . . . 23 23 . 4 17 5 1 Message Errors 13 | . . . . 5 4 . 1 2 . 1 Matter Fused 18 | . . . . 10 4 . . 4 . . Heat Flow Errors 19 | . . . . 3 10 . . 3 3 . Energy Discharges 5 | . . . . 1 1 . 1 2 . . Data Loss (minor) 9 | . . . . 3 2 . 1 2 1 . Data Loss (major) 3 | . . . . . 2 . . . 1 . Misfires 4 | . . . . 1 . . 1 2 . . Alerts 1 | . . . . . . . . 1 . . Weapon Failures 1 | . . . . . . . . 1 . . Overload Shots 4 | . . . . . . . . 2 . 2 Effects 2 | . . . . . . . . 1 . 1 Energy Bleed 1 | . . . . . . . . 1 . . Short Circuit 1 | . . . . . . . . . . 1 Overflow Damage 83 | . 1 . 40 . 42 . . . . . Projectiles 1 | . 1 . . . . . . . . . Explosions 82 | . . . 40 . 42 . . . . . Melee . | . . . . . . . . . . . Knockbacks 4 | . . . . . . . . 4 . . Impact . | . . . . . . . . . . . Kinetic 4 | . . . . . . . . 4 . . Secondary . | . . . . . . . . . . . Self-Inflicted Damage 51 | . . . 19 . 32 . . . . . Shots 2 | . . . 1 . 1 . . . . . Rammed . | . . . . . . . . . . . Targets Rammed . | . . . . . . . . . . . Kicked . | . . . . . . . . . . . Crushed . | . . . . . . . . . . . Highest Temperature 409 | . 225 . 50 320 253 198 306 409 251 257 Average Temperature 96 | . 75 . 16 102 78 78 130 121 111 151 Received Heat Transfer 1155 | . 120 . 66 288 . 36 60 477 . 108 Effects 6 | . . . . 5 . . . 1 . . Energy Bleed 2 | . . . . 2 . . . . . . Interference 3 | . . . . 3 . . . . . . Short Circuit 1 | . . . . . . . . 1 . . Siege Activations . | . . . . . . . . . . . Martial Activations . | . . . . . . . . . . . Shielding Activations . | . . . . . . . . . . . Robots Disrupted . | . . . . . . . . . . . Combat Hostiles . | . . . . . . . . . . . Robots Corrupted . | . . . . . . . . . . . Combat Hostiles . | . . . . . . . . . . . Parts Fried . | . . . . . . . . . . . Impact Corruptions . | . . . . . . . . . . . Robots Melted 2 | . . . . . . . . 2 . . Combat Hostiles 2 | . . . . . . . . 2 . . Parts Melted 21 | . . . . 5 . 1 7 7 . 1 Heat Transferred 9760 | . 1221 . 333 2987 111 592 888 2936 . 692 Parts Sabotaged . | . . . . . . . . . . . Parts Stolen . | . . . . . . . . . . . Parts Stripped . | . . . . . . . . . . . Power Chain Reactions . | . . . . . . . . . . . Alert | -11 -10 -10 -10 -8 -8 -7 -7 -7 -7 -6 ------- Run | Yrd Mat Min Sub Mat Gar Fac Low Low Dat Pro Maximum Alert Level 3 | . 1 . . 1 3 2 . . . . Low Security (%) 59 | 100 95 100 . 97 5 . . . . . Level 1 16 | . 4 . . 2 27 58 . . . . Level 2 20 | . . . . . 53 41 . . . . Level 3 4 | . . . . . 13 . . . . . Level 4 . | . . . . . . . . . . . Level 5 . | . . . . . . . . . . . High Security . | . . . . . . . . . . . Max Security . | . . . . . . . . . . . Peak Influence 754 | . 225 81 . 200 754 443 . . . . Initial 395 | . . 81 . . 122 395 . . . . Average 235 | . 113 71 . 41 499 400 . . . . Influence Increases 2471 | . 499 . 210 517 642 140 106 305 . 52 Destroy 0b10 Robot/C 1100 | . 300 . 140 260 . 40 80 260 . 20 Destroy 0b10 Robot/NC 110 | . 20 . . 40 . 20 5 10 . 15 Destroy Leader 220 | . 72 . 10 76 . 12 20 20 . 10 Allied During Kill 17 | . . . . . . 9 1 . . 7 Successful Hack 76 | . 17 . . 31 . 28 . . . . Select Force Hacks 150 | . 60 . . 60 . 30 . . . . Disable Machine 60 | . 15 . . 15 30 . . . . . Anti-Garrison Action 550 | . . . . . 550 . . . . . Destroy Structure 98 | . . . . 35 62 1 . . . . Lose Combat Pursuer 90 | . 15 . 60 . . . . 15 . . Influence Decreases 2464 | . 290 148 271 329 76 519 468 299 19 45 Entered New Map 749 | . . 128 33 . 66 359 140 4 19 . Time Decay 1392 | . 260 20 228 303 . 130 238 188 . 25 Lost Part 223 | . 30 . 10 26 10 10 30 107 . . Lost Ally 100 | . . . . . . 20 60 . . 20 Squads Dispatched 9 | . 4 . . 3 . 1 . 1 . . Investigation 5 | . 2 . . 2 . 1 . . . . Extermination . | . . . . . . . . . . . Reinforcement 3 | . 2 . . 1 . . . . . . Assault 1 | . . . . . . . . 1 . . Garrison . | . . . . . . . . . . . Intercept . | . . . . . . . . . . . Searches Triggered . | . . . . . . . . . . . Construction Impeded 1 | . . . . 1 . . . . . . Haulers Reinforced . | . . . . . . . . . . . Active Scanning Responses . | . . . . . . . . . . . Cargo Convoy Interrupts . | . . . . . . . . . . . Stealth | -11 -10 -10 -10 -8 -8 -7 -7 -7 -7 -6 --------- Run | Yrd Mat Min Sub Mat Gar Fac Low Low Dat Pro Distress Signals 4 | . 2 . . 1 . 1 . . . . Communications Jammed . | . . . . . . . . . . . Distress Signals . | . . . . . . . . . . . Times Spotted 88 | . 25 . 16 20 . 4 3 14 . 6 Peak Tracking Total 7 | . 5 . 5 5 . 2 2 7 . 5 Tactical Retreats 3 | . 1 . 1 . . . . 1 . . Traps | -11 -10 -10 -10 -8 -8 -7 -7 -7 -7 -6 ------- Run | Yrd Mat Min Sub Mat Gar Fac Low Low Dat Pro Traps Triggered 4 | . 2 . . 1 1 . . . . . Indirectly . | . . . . . . . . . . . Trap Hack Attempts . | . . . . . . . . . . . Triggered . | . . . . . . . . . . . Disarmed . | . . . . . . . . . . . Reprogrammed . | . . . . . . . . . . . Reused 1 | . . . 1 . . . . . . . Traps Extracted . | . . . . . . . . . . . Installed 1 | . . . 1 . . . . . . . Triggered . | . . . . . . . . . . . Most Traps Carried 7 | . . . . . . . . 7 4 4 Machines | -11 -10 -10 -10 -8 -8 -7 -7 -7 -7 -6 ---------- Run | Yrd Mat Min Sub Mat Gar Fac Low Low Dat Pro Machines Disabled 11 | . 1 . 1 1 8 . . . . . Max in Single Turn 2 | . 1 . 1 1 2 . . . . . Garrison Relay 4 | . . . . . 4 . . . . . Phase Generator 1 | . . . . . 1 . . . . . Machines Repaired . | . . . . . . . . . . . Machines Dismantled . | . . . . . . . . . . . Machines Sabotaged . | . . . . . . . . . . . Overloaded Fab Kills . | . . . . . . . . . . . Hacking | -11 -10 -10 -10 -8 -8 -7 -7 -7 -7 -6 --------- Run | Yrd Mat Min Sub Mat Gar Fac Low Low Dat Pro Machines Accessed 35 | . 8 1 3 11 2 5 . 1 4 . Terminals 20 | . 6 . . 8 2 4 . . . . Fabricators . | . . . . . . . . . . . Repair Stations . | . . . . . . . . . . . Recycling Units 5 | . 2 . . 2 . 1 . . . . Scanalyzers . | . . . . . . . . . . . Garrison Access 1 | . . . . 1 . . . . . . Total Hacks 98 | . 20 1 5 24 6 11 . 1 30 . Successful 65 | . 11 1 5 12 . 5 . 1 30 . Failed 32 | . 8 . . 12 6 6 . . . . Catastrophic 7 | . . . . 6 . 1 . . . . Database Lockouts 1 | . 1 . . . . . . . . . Manual 47 | . 19 . . 19 . 9 . . . . Terminals 54 | . 17 . . 21 6 10 . . . . Fabricators . | . . . . . . . . . . . Repair Stations . | . . . . . . . . . . . Recycling Units 6 | . 3 . . 2 . 1 . . . . Scanalyzers . | . . . . . . . . . . . Garrison Access 1 | . . . . 1 . . . . . . Terminal Hacks 45 | . 3 1 5 5 . . . 1 30 . Record 14 | . . . 3 . . . . . 11 . Part Schematic 13 | . . . . . . . . . 13 . Robot Schematic 3 | . . . . . . . . . 3 . Robot Analysis 4 | . 2 . . 2 . . . . . . Prototype ID Bank 3 | . . . . . . . . . 3 . Open Door 3 | . . 1 1 . . . . 1 . . Branch Access Points 1 | . . . . 1 . . . . . . Terminal Index 2 | . 1 . . 1 . . . . . . Alert Level 1 | . . . . 1 . . . . . . Proto ID Catalog 1 | . . . 1 . . . . . . . Fabricator Hacks . | . . . . . . . . . . . Repair Station Hacks . | . . . . . . . . . . . Recycling Unit Hacks . | . . . . . . . . . . . Scanalyzer . | . . . . . . . . . . . Garrison Access Hacks 1 | . . . . 1 . . . . . . Unlock Access 1 | . . . . 1 . . . . . . Unauthorized Hacks 19 | . 8 . . 6 . 5 . . . . Terminals 14 | . 6 . . 4 . 4 . . . . Botnet 5 | . 2 . . 2 . 1 . . . . Skim 9 | . 4 . . 2 . 3 . . . . Fabricators . | . . . . . . . . . . . Repair Stations . | . . . . . . . . . . . Recycling Units 5 | . 2 . . 2 . 1 . . . . Tunnel 5 | . 2 . . 2 . 1 . . . . Scanalyzers . | . . . . . . . . . . . Garrison Access . | . . . . . . . . . . . Data Cores Recovered 2 | . 1 . . 1 . . . . . . Used 2 | . 1 . . 1 . . . . . . Hacking Detections 19 | . 5 . . 8 2 4 . . . . Full Trace Events 2 | . . . . . 2 . . . . . Feedback Events 1 | . . . . . 1 . . . . . Hackware Fried 1 | . . . . . 1 . . . . . Feedback Blocked . | . . . . . . . . . . . Robot Schematics Acquired 3 | . . . . . . . . . 3 . Robots Built . | . . . . . . . . . . . Authchips . | . . . . . . . . . . . Time . | . . . . . . . . . . . Total Robot Build Rating . | . . . . . . . . . . . Part Schematics Acquired 13 | . . . . . . . . . 13 . Parts Built . | . . . . . . . . . . . Authchips . | . . . . . . . . . . . Time . | . . . . . . . . . . . Total Part Build Rating . | . . . . . . . . . . . Parts Repaired . | . . . . . . . . . . . Time . | . . . . . . . . . . . Parts Recycled . | . . . . . . . . . . . Recycled Matter . | . . . . . . . . . . . Retrieved Matter . | . . . . . . . . . . . Retrieved Components . | . . . . . . . . . . . Parts Scanalyzed . | . . . . . . . . . . . Part Schematics Acquired . | . . . . . . . . . . . Parts Damaged . | . . . . . . . . . . . Bothacking | -11 -10 -10 -10 -8 -8 -7 -7 -7 -7 -6 ------------ Run | Yrd Mat Min Sub Mat Gar Fac Low Low Dat Pro Used RIF Installer . | . . . . . . . . . . . Robots Hacked 1 | . . . . . . . . . . 1 Non-combat . | . . . . . . . . . . . Combat 1 | . . . . . . . . . . 1 Robot Hacks Applied 1 | . . . . . . . . . . 1 parse_system 1 | . . . . . . . . . . 1 Relay Couplers Released 17 | . . . . . 17 . . . . . Machine Destruction 17 | . . . . . 17 . . . . . Fabnet Peak Effective % . | . . . . . . . . . . . Robots Rewired 6 | . . . . . 4 . . 2 . . Allies Hacked . | . . . . . . . . . . . Hacks Repelled . | . . . . . . . . . . . Allies | -11 -10 -10 -10 -8 -8 -7 -7 -7 -7 -6 -------- Run | Yrd Mat Min Sub Mat Gar Fac Low Low Dat Pro Total Allies 7 | . . . . . 4 . . 2 . 1 Largest Group 4 | . . . . . 4 4 3 2 2 3 Highest-Rated Group 128 | . . . . . 48 48 43 32 32 128 Highest-Rated Ally 96 | . . . . . 18 18 18 16 16 96 Initial Warlord ECA Mod 49 | . . . . . . 10 10 10 10 9 Total Orders . | . . . . . . . . . . . Ally Attacks 19 | . . . . . . 9 2 . . 8 Total Damage 350 | . . . . . . 103 54 . . 193 Kills 4 | . . . . . . 1 1 . . 2 Allies Corrupted . | . . . . . . . . . . . Allies Melted . | . . . . . . . . . . . Intel | -11 -10 -10 -10 -8 -8 -7 -7 -7 -7 -6 ------- Run | Yrd Mat Min Sub Mat Gar Fac Low Low Dat Pro Active Infowar (turns) 3653 | . . . 1352 517 . 266 515 1003 . . Seismic 3653 | . . . 1352 517 . 266 515 1003 . . Robot Analysis Total 4 | . 2 . . 2 . . . . . . Derelict Logs Recovered 4 | . . . . . . . 2 1 . 1 Drone Launches . | . . . . . . . . . . . Drone Recoveries . | . . . . . . . . . . . Exploration | -11 -10 -10 -10 -8 -8 -7 -7 -7 -7 -6 ------------- Run | Yrd Mat Min Sub Mat Gar Fac Low Low Dat Pro Turns Passed 6514 | 53 682 55 1464 914 898 268 515 1178 244 243 Spaces Moved 4022 | 45 452 23 1153 605 621 163 348 475 77 60 Core 5 | 1 . . . . . . . 4 . . Treads 158 | . . . . . . . . 21 77 60 Legs . | . . . . . . . . . . . Wheels 3859 | 44 452 23 1153 605 621 163 348 450 . . Hover . | . . . . . . . . . . . Flight . | . . . . . . . . . . . Fastest Speed 50 | 50 90 120 110 101 110 125 125 140 320 320 Average Speed 137 | 89 111 120 114 114 132 132 138 203 320 320 Slowest Speed 900 | 100 120 120 120 155 155 140 215 900 320 320 Overloaded Moves . | . . . . . . . . . . . Propulsion Burnouts . | . . . . . . . . . . . Robots Hopped . | . . . . . . . . . . . Potential Cave-ins . | . . . . . . . . . . . Cave-ins Triggered . | . . . . . . . . . . . Exploration Rate (%) 46 | 3 87 8 51 59 91 6 70 56 68 10 Regions Visited 10 Branch Regions 6 Pre-discovered Areas 8 | . 2 . . 2 . 1 2 . 1 . Known Exits Taken 2 | . . . . 1 . 1 . . . . Unknown Exits Taken 7 | 1 1 1 1 . . . 1 1 1 . Scrap Searched 6 | . . . 3 . . . 2 1 . . Spaces Dug 17 | . . . 2 2 3 1 . 9 . . Terrain Destroyed 188 | . . . 66 31 77 1 . 13 . . Melee 14 | . . . . 1 3 1 . 9 . . Projectile 7 | . . . 2 5 . . . . . . AOE 167 | . . . 64 25 74 . . 4 . . Terrain Rammed . | . . . . . . . . . . . Walls Destroyed . | . . . . . . . . . . . Machines Disabled . | . . . . . . . . . . . Actions | -11 -10 -10 -10 -8 -8 -7 -7 -7 -7 -6 --------- Run | Yrd Mat Min Sub Mat Gar Fac Low Low Dat Pro Total 4624 | 54 562 50 1244 732 667 194 362 599 76 84 Wait 170 | . 41 27 23 30 2 13 3 30 . 1 Move 4013 | 44 451 22 1152 605 620 162 347 474 76 60 Hop . | . . . . . . . . . . . Pick Up 76 | 4 18 1 12 14 9 3 2 11 . 2 Fast Attach 24 | 6 4 . . 7 1 1 . 4 . 1 Attach 31 | . 3 . 3 6 . 3 2 13 . 1 Detach 2 | . 1 . . . . . . 1 . . Swap 41 | . 3 . 11 11 5 3 . 6 . 2 Drop 43 | . 6 . 10 13 5 . . 9 . . Fire 187 | . 35 . 32 45 7 8 8 38 . 14 Melee 36 | . . . . 1 18 1 . 13 . 3 Ram . | . . . . . . . . . . . Kick . | . . . . . . . . . . . Crush . | . . . . . . . . . . . Escape Stasis . | . . . . . . . . . . . Rewire . | . . . . . . . . . . . Trap 1 | . . . 1 . . . . . . . Miscellaneous . | . . . . . . . . . . . Route ------- -11/Scrapyard -10/Materials (discovered 4 exits: [*Mat x2] / *Min x2) -10/Mines -10/Subcaves -8/Materials (discovered 4 exits: *Fac x3 / Gar) -8/Garrison (discovered 3 exits: *Fac x3) -7/Factory (discovered 6 exits: Fac x4 / Sto / *Low) -7/Lower Caves -7/Lower Caves -7/Data Miner -6/Proximity Caves History --------- Turn | Location | Event 24 | -11/Scrapyard | Discovered new exit (range 15) 54 | -11/Scrapyard | Entered Materials 232 | -10/Materials | Discovered new exit (range 16) 302 | -10/Materials | Build established: Mutant 353 | -10/Materials | Discovered new exit (range 16) 605 | -10/Materials | Discovered new exit (range 6) 621 | -10/Materials | Central database locked down 633 | -10/Materials | Discovered new exit (range 16) 736 | -10/Materials | Entered Mines 743 | -10/Mines | Found the Drone Emporium 748 | -10/Mines | Found Prototype Device 770 | -10/Mines | Discovered new exit (range 4) 791 | -10/Mines | Entered Subcaves 791 | -10/Subcaves | Identified Thief Drone Bay 792 | -10/Subcaves | Approached by a straggling Scientist 804 | -10/Subcaves | Core integrity fell below 50% 979 | -10/Subcaves | Curiously followed by a Cobbler waking with a query about "LVR3C" 1178 | -10/Subcaves | Ambushed by Subdweller buried in earth 1405 | -10/Subcaves | Visited 4L-MR0's lab 1423 | -10/Subcaves | Found Tower Shield 1496 | -10/Subcaves | Core integrity fell below 20% 1679 | -10/Subcaves | Visited Clippyterm 1682 | -10/Subcaves | Learned 40 Factory zone layouts 2244 | -10/Subcaves | Discovered new exit (range 11) 2255 | -10/Subcaves | Entered Materials 2255 | -8/Materials | Evolved 4 slots: Propulsion x1, Utility x2, Weapon x1 2614 | -8/Materials | Discovered new exit (range 3) 2622 | -8/Materials | Lost 3 parts (1p1n1u) 2870 | -8/Materials | Discovered new exit (range 4) 3144 | -8/Materials | Discovered new exit (range 13) 3169 | -8/Materials | Identified exit to Garrison 3169 | -8/Materials | Entered Garrison 3169 | -8/Garrison | Discovered recently destroyed garrison 3247 | -8/Garrison | Garrison Relay disabled 3350 | -8/Garrison | Phase Generator disabled 3363 | -8/Garrison | Discovered new exit (range 8) 3465 | -8/Garrison | Garrison Relay disabled 3636 | -8/Garrison | Garrison Relay disabled 3694 | -8/Garrison | Discovered new exit (range 9) 3865 | -8/Garrison | Discovered new exit (range 14) 3945 | -8/Garrison | Garrison Relay disabled 3966 | -8/Garrison | Mak. Hacking Suite fried by hacking feedback 4043 | -8/Garrison | Build established: Commander-Mutant 4067 | -8/Garrison | Entered Factory 4067 | -7/Factory | Accompanied by 4 allies 4067 | -7/Factory | Evolved 2 slots: Propulsion x1, Utility x1 4068 | -7/Factory | Identified exit to Factory 4068 | -7/Factory | Identified exit to Lower Caves 4068 | -7/Factory | Identified exit to Storage 4335 | -7/Factory | Entered Lower Caves 4335 | -7/Lower Caves | Accompanied by 3 allies 4378 | -7/Lower Caves | Attracted the attention of an 0b10 checkpoint 4393 | -7/Lower Caves | Lost 3 allies 4416 | -7/Lower Caves | Lost 3 parts (2n1u) 4418 | -7/Lower Caves | Met a Warlord Commander 4419 | -7/Lower Caves | Learned location of Warlord (-4) 4420 | -7/Lower Caves | Warlord Commander delivered Encrypted Comm Array 4424 | -7/Lower Caves | Found Encrypted Comm Array 4475 | -7/Lower Caves | Learned location of 1 exit from Factory 4708 | -7/Lower Caves | Build established: Scavenger-Gunner 4805 | -7/Lower Caves | Discovered new exit (range 15) 4850 | -7/Lower Caves | Entered another Lower Caves area 4931 | -7/Lower Caves | Encountered a Warlord checkpoint 5192 | -7/Lower Caves | Found Alien Artifact 5192 | -7/Lower Caves | Identified Core Expander 5192 | -7/Lower Caves | Installed Core Expander, added new Power slot 5363 | -7/Lower Caves | Build established: Scavenger-Mutant 5832 | -7/Lower Caves | Attracted the attention of an 0b10 outpost 5854 | -7/Lower Caves | Core integrity fell below 50% 5893 | -7/Lower Caves | Core integrity fell below 20% 5909 | -7/Lower Caves | Lost 11 parts (3p2n2u4w) 5920 | -7/Lower Caves | Discovered new exit (range 4) 6028 | -7/Lower Caves | Entered Data Miner 6028 | -7/Data Miner | Accompanied by 2 allies 6028 | -7/Data Miner | Discovered new exit (range 6) 6089 | -7/Data Miner | Met Data Miner 6133 | -7/Data Miner | Build established: Mutant 6150 | -7/Data Miner | Learned location of Section 7 (-2) 6150 | -7/Data Miner | Acquired the access code to Warlord's prototype stash 6198 | -7/Data Miner | Received God Mode back door access code from Data Miner 6272 | -7/Data Miner | Entered Proximity Caves 6272 | -6/Proximity Caves | Accompanied by 2 allies 6301 | -6/Proximity Caves | Learned location of 1 exit from Factory 6483 | -6/Proximity Caves | Escorted by Enhanced Grunt 6515 | -6/Proximity Caves | Destroyed by G-50 Soldier with Heavy Laser Last Messages --------------- 06458_ Acquired Imp. Heat Sink. 06469_ Acquired Targeting Computer. 06483_ Enhanced Grunt: "Protecting LRC-V3." 06491_ Trooper 4b destroyed. 06492_ Lgt. Treads destroyed. 06493_ Trooper 4a suffers critical hit (Burn). 06493_ Trooper 4a Aluminum Leg severed. 06494_ Trooper 4a destroyed. 06495_ Minigun broken. 06495_ Overload: Short circuit. 06499_ Mak. Laser destroyed. 06500_ Enhanced Grunt Antimatter Reactor severed. 06504_ L-41 Fighter destroyed. 06505_ Enhanced Grunt suffers critical hit (Burn). 06506_ Enhanced Grunt destroyed. 06508_ Microactuators fries itself beyond repair. 06513_ Critical hit (Burn: +37). Map ----- +----------------------------------------------------+ | ?????????????????????????????????????????????????? | | ?????????????????????????????????????????????????? | | ?????????????????????????????????????????????????? | | ?????????????????????????????????????????????????? | | ?????????????????????????????????????????????????? | | ?????????????????????????????????????????????????? | | ?????????????????????????????????????????????????? | | ?????????????????????????????????????????????????? | | ?????????????????????????????????????????????????? | | ?????????????????????????????????????????????????? | | ?????????????????????????????????????????????????? | | ?????????????????????????????????????????????????? | | ?????????????????????????????????????????????????? | | ?????????????????????????????????????????????????? | | ?????????????????????????????????????????????????? | | ?????????????????????????????????????????????????? | | ?????????????????????????????????????????????????? | | ?????????????????????????????????????????????????? | | ?????????????????????????????????????????????????? | | ????????????????????????????##???????????????????? | | ???????????????????????????# #???????????????????? | | ??????????????????????????# ????????????????????? | | ???????????????????????### ?????? ??????????? | | ???????????????????????# g#???? ??????????? | | ??????????????????????## ####g #???????????? | | ?????????????????????## @b=%== #???????????? | | ????????????????????## !*[%g ????????? | | ??????????????####### ###* ????????? | | ?????????????## ## #???? ?????????? | | ????????????## % ##?????? #?????????? | | ????????????# ## #????????? #??????????? | | ????????????# #???????????##??????????? | | ????????????## %% ##??????????????????????? | | ?????????????###### ##?????????????????????? | | ??????????????????## ##?????##?????????????? | | ?????????#####?????# ## ##???# #?????????????? | | ?????????# ##????###### #??# ##????????????? | | ?????????# ##????????## ### #????????????? | | ???????????# %#??######### ## #????????????? | | ??????????## #?## ## ### ## #?????????????? | | ??????????# ### ## #?????????????? | | ??????????# ### #####?????????????? | | ??????????# % ## ##?????????????????? | | ?# ###### ## # #??????????????????? | | ??# # ### #??????????????????? | | ?????### ### ##?####??????????????????? | | ?????? ??# #????????????????????????? | | ?????# ???# ## #????????????????????????? | | ???? ????# ### #????????????????????????? | | ?? ?????# ##?# ###????????????????????????? | +----------------------------------------------------+ Best States ------------- Heat Dissipation 62 Energy Generation 21 Energy Capacity 325 Matter Stores 300 Matter Capacity 400 Sight Range 16 Terrain Scan Density 10 Armor Coverage 150 Weapon Shielding 66 Evasion (%) 42 Targeting Accuracy 5 Core Analysis 6 Recoil Reduction 1 Offensive Hacking 11 Authchip Count 5 Trap Extractor Capacity 4 Item Schematics ----------------- Combat Drone Bay | -7/Data Miner | Free Lgt. Regenerative Plating | -7/Data Miner | Free Cld. Aerolev Unit | -7/Data Miner | Free Thermal Defense Suite | -7/Data Miner | Free Imp. Heavy Laser | -7/Data Miner | Free Gyrokinetic Inverter | -7/Data Miner | Free Adv. Drone Bay | -7/Data Miner | Free Hvy. Shock Bomb Launcher | -7/Data Miner | Free Fusion Compressor | -7/Data Miner | Free Neutrino Core | -7/Data Miner | Free Adv. Plasma Cannon | -7/Data Miner | Free Adv. Datajack | -7/Data Miner | Free Hardcell Cannon | -7/Data Miner | Free Robot Schematics ------------------ A-15 Conveyor | -7/Data Miner | Free O-24 Administrator | -7/Data Miner | Free L-41 Fighter | -7/Data Miner | Free Fabricated ------------ Nothing Repaired ---------- Nothing Alien Tech Used ----------------- Core Expander Achievements -------------- None Challenges ------------ None Game ------ Seed CargoUtilityFrame Manual? 0 Play Time 01:19:50 Cumulative 302.8 hours Start 2025.08.14 @ 00:42:11 End 2025.08.14 @ 16:58:36 Sessions 6 Manual Loads 0 Difficulty Rogue Special Mode None Game No. 249 Rogue 249 Adventurer 0 Explorer 0 Win Type - Total 2 Types 2/0/0/0/0/0/0/0/0/0 Lore% 80 Gallery% 67 Achievement% 57 Wizard Run 0 Options --------- Layout 1 ASCII 0 Keyboard 0 Movement Mouse Keybinds 0 Fullscreen 1 Font 24/Smallcaps Map View 50x35 Zoom Use 0% Tactical HUD 1 Map Filters NONE Filters NONE Steam 1 RUN: a43aa2f0-8bc3-4cde-b7f7-478dca7800cc